lending/lending_fUSD_20240410
["ID","MTS","AMOUNT","RATE_DAILY","PERIOD"]
[322102696,1712773846464,-534.0,0.00021,2]
[322102697,1712773846475,-25032.75147624,0.00021,2]
[322102698,1712773846556,-291.2772942,0.00021,2]
[322102699,1712773846614,-1116.99427446,0.00021,2]
[322102700,1712773846627,-4048.99318825,0.00021,2]
[322102701,1712773846639,-346.915316,0.00021,2]
[322102702,1712773846650,-310.00217,0.00021,2]
[322102703,1712773846672,-6094.28623264,0.00021,2]
[322102704,1712773846730,-14370.143671,0.00021,2]
[322102705,1712773846741,-913.82952018,0.00021,2]
[322102706,1712773911026,638.07636844,0.00018897,2]
[322102707,1712774046375,157.84390401,0.00018954,2]
[322102709,1712774094247,1656.77,0.00018835,2]
[322102710,1712774116553,765.65179418,0.00018954,2]
[322102711,1712774125633,6003.4,0.00018808,2]
[322102712,1712774128979,332.25,0.00016883,2]
[322102713,1712774142777,356.22204606,0.00018954,2]
[322102714,1712774173328,250.0,0.00018791,2]
[322102715,1712774193730,200.0,0.00018791,2]
[322102716,1712774242702,2442.76345537,0.00018954,2]
[322102717,1712774250978,188.42,0.00018704,2]
[322102718,1712774258993,48639.12,0.00018854,2]
[322102719,1712774274841,224.78,0.00018704,2]
[322102720,1712774289627,23900.0,0.00018704,2]
[322102721,1712774323447,4223.05,0.0001869,2]
[322102722,1712774354010,500.0,0.0001869,2]
[322102723,1712774387059,669.94531989,0.00018954,2]
[322102724,1712774419041,3077.21,0.00018706,2]
[322102725,1712774463555,235.71,0.00018782,2]
[322102726,1712774463867,235.71,0.00018833,2]
[322102727,1712774464079,235.71,0.00018885,2]
[322102728,1712774464266,235.71,0.00018936,2]
[322102729,1712774464477,235.71,0.00018988,2]
[322102730,1712774472315,2281.33173832,0.00018954,2]
[322102731,1712774486946,1390.21,0.00018582,2]
[322102732,1712774512305,629.51,0.00018583,2]
[322102733,1712774518418,1827.14,0.00018572,2]
[322102734,1712774553952,1768.18748709,0.00019,2]
[322102735,1712774583099,2198.48710986,0.00018954,2]
[322102736,1712774603651,4001.93,0.00018538,2]
[322102737,1712774657807,586.20215493,0.00018954,2]
[322102738,1712774690832,315.63,0.00016646,2]
[322102739,1712774691077,315.63,0.0001891,2]
[322102740,1712774757239,200.0,0.00018584,2]
[322102741,1712774762260,179.49963627,0.00018954,3]
[322102747,1712774923395,1978.63839882,0.00018954,2]
[322102748,1712774927975,512.92688552,0.00018954,2]
[322102749,1712774947552,2053.19856447,0.00018954,2]
[322102751,1712774981885,176.78,0.00018718,2]
[322102752,1712774982102,176.78,0.00018769,2]
[322102753,1712774982543,176.78,0.0001882,2]
[322102754,1712774982750,176.78,0.00018872,2]
[322102755,1712774982981,176.78,0.00018923,2]
[322102756,1712774983433,176.78,0.00018974,2]
[322102757,1712774991974,1892.584,0.00018933,2]
[322102758,1712775005567,1000.0,0.00018541,2]
[322102759,1712775006797,157.84390401,0.00018927,2]
[322102760,1712775011774,157.84390401,0.00018935,2]
[322102761,1712775016759,157.84390401,0.00018944,2]
[322102762,1712775021760,157.84390401,0.00018952,2]
[322102763,1712775026752,157.84390401,0.0001896,2]
[322102827,1712775031631,-1000.0,0.00019024,2]
[322102831,1712775031640,-2203.09868202,0.00019025,2]
[322102834,1712775031649,-27.53433864,0.00019026,2]
[322102844,1712775031691,-149.24566136,0.00019026,2]
[322102847,1712775031700,-531.41244433,0.00019032,2]
[322102849,1712775031710,-19.41741479,0.0001905,2]
[322102852,1712775031721,-1319.9454696,0.0001905,2]
[322102855,1712775031731,-300.0,0.00019051,2]
[322102858,1712775031740,-150.0,0.00019051,2]
[322102861,1712775031749,-150.0,0.00019051,2]
[322102864,1712775031758,-1905.88867092,0.00019052,2]
[322102867,1712775031771,-511289.78510315,0.00019052,2]
[322102869,1712775031780,-176.78,0.00019077,2]
[322102871,1712775031790,-3155.84658012,0.0001909,2]
[322102873,1712775031803,-1280.6,0.00019091,2]
[322102875,1712775031813,-150.0,0.00019123,2]
[322102877,1712775031822,-750.07,0.00019123,2]
[322102878,1712775031835,-4194.16,0.00019123,2]
[322102879,1712775031844,-269.89,0.00019123,2]
[322102880,1712775031853,-150.99,0.00019123,2]
[322102881,1712775031862,-176.78,0.00019128,2]
[322102882,1712775031873,-1000.0,0.00019178,2]
[322102883,1712775031882,-176.78,0.0001918,2]
[322102884,1712775031892,-176.78,0.00019231,2]
[322102885,1712775031901,-512.92688551,0.00019232,2]
[322102886,1712775031910,-176.78,0.00019282,2]
[322102887,1712775031919,-836.34,0.00019325,2]
[322102888,1712775031929,-499.99,0.00019325,2]
[322102889,1712775031939,-2926.74,0.00019325,2]
[322102890,1712775031948,-1149.71,0.0001933,2]
[322102891,1712775031957,-836.34,0.0001933,2]
[322102892,1712775031967,-176.78,0.00019334,2]
[322102893,1712775031976,-836.34,0.00019335,2]
[322102894,1712775031985,-836.34,0.0001934,2]
[322102896,1712775031994,-836.34,0.00019345,2]
[322102898,1712775032004,-836.34,0.0001935,2]
[322102900,1712775032013,-836.34,0.00019355,2]
[322102902,1712775032022,-836.34,0.00019361,2]
[322102904,1712775032031,-836.34,0.00019366,2]
[322102906,1712775032040,-836.34,0.00019371,2]
[322102908,1712775032049,-836.34,0.00019376,2]
[322102910,1712775032058,-836.34,0.00019381,2]
[322102912,1712775032067,-176.78,0.00019385,2]
[322102913,1712775032079,-836.34,0.00019386,2]
[322102915,1712775032088,-836.34,0.00019391,2]
[322102917,1712775032098,-836.34,0.00019396,2]
[322102919,1712775032107,-836.34,0.00019401,2]
[322102921,1712775032116,-836.34,0.00019406,2]
[322102923,1712775032126,-836.34,0.00019412,2]
[322102925,1712775032135,-836.34,0.00019417,2]
[322102927,1712775032144,-836.34,0.00019422,2]
[322102929,1712775032154,-176.78,0.00019436,2]
[322102931,1712775032164,-176.78,0.00019488,2]
[322102932,1712775032173,-512.92688551,0.0001951,2]
[322102933,1712775032183,-176.78,0.00019539,2]
[322102934,1712775032193,-167.0,0.0001955,2]
[322102935,1712775032202,-176.78,0.00019591,2]
[322102936,1712775032213,-176.78,0.00019642,2]
[322102937,1712775032223,-176.78,0.00019693,2]
[322102938,1712775032232,-512.92688551,0.00019788,2]
[322102939,1712775032241,-210.667403,0.0002,2]
[322102940,1712775032251,-512.92688551,0.00020066,2]
[322102941,1712775032261,-982.48816381,0.00020095,2]
[322102942,1712775032272,-313.50702915,0.00020095,2]
[322102943,1712775032282,-681.90393791,0.00020095,2]
[322102944,1712775032291,-990.6155768,0.00020095,2]
[322102945,1712775032301,-155.0,0.00020095,2]
[322102946,1712775032311,-654.75327641,0.00020095,2]
[322102947,1712775032320,-155.0,0.00020095,2]
[322102948,1712775032332,-269.92509742,0.00020095,2]
[322102949,1712775032341,-191.4776989,0.00020095,2]
[322102950,1712775032350,-208.47667207,0.00020095,2]
[322102951,1712775032360,-1240.06540618,0.00020095,2]
[322102952,1712775032369,-191.60394835,0.00020095,2]
[322102953,1712775032379,-193.57206001,0.00020095,2]
[322102954,1712775032388,-528.69679371,0.00020095,2]
[322102955,1712775032398,-155.00000813,0.00020095,2]
[322102956,1712775032407,-1890.05898558,0.00020095,2]
[322102957,1712775032417,-3350.74916906,0.00020095,2]
[322102958,1712775032426,-1944.89571205,0.00020096,2]
[322102959,1712775032435,-100000.0,0.00020097,2]
[322102960,1712775032445,-4026.0084,0.00020097,2]
[322102961,1712775032455,-293.094,0.00020097,2]
[322102962,1712775032464,-7500.0,0.000203,2]
[322102963,1712775032473,-512.92688551,0.00020344,2]
[322102964,1712775032483,-2275.6305,0.000204,2]
[322102965,1712775032492,-72480.3045,0.000204,2]
[322102966,1712775032502,-1000.0,0.000204,2]
[322102967,1712775032511,-159082.71570916,0.000204,2]
[322102968,1712775032521,-171.57966541,0.00020445,2]
[322102969,1712775032531,-492.7070538,0.00020448,2]
[322102970,1712775032541,-152.98612318,0.00020453,2]
[322102971,1712775032551,-500.0,0.00020499,2]
[322102972,1712775032561,-491.21005911,0.00020499,2]
[322102973,1712775032571,-500.0,0.00020499,2]
[322102974,1712775032582,-361.7584477,0.00020499,2]
[322102975,1712775032591,-500.0,0.00020499,2]
[322102976,1712775032601,-500.0,0.00020499,2]
[322102977,1712775032612,-500.0,0.00020499,2]
[322102978,1712775032622,-1674676.81080197,0.000205,2]
[322102979,1712775032632,-233.95,0.00020553,2]
[322102980,1712775032641,-512.92688551,0.00020622,2]
[322102981,1712775032651,-165.70820128,0.0002079,2]
[322102982,1712775032666,-3000.0,0.0002079,2]
[322102983,1712775032676,-3000.0,0.0002082,2]
[322102984,1712775032685,-210.667403,0.00020822,2]
[322102985,1712775032694,-200.0,0.00020831,2]
[322102986,1712775032703,-1000.0,0.00020831,2]
[322102987,1712775032717,-200.0,0.00020831,2]
[322102988,1712775032728,-500.0,0.00020831,2]
[322102989,1712775032738,-1000.0,0.00020832,2]
[322102990,1712775032747,-500.0,0.00020832,2]
[322102991,1712775032757,-200.0,0.00020832,2]
[322102992,1712775032766,-1000.0,0.00020832,2]
[322102993,1712775032775,-1000.0,0.00020832,2]
[322102994,1712775032785,-1000.0,0.00020832,2]
[322102995,1712775032798,-200.0,0.00020832,2]
[322102996,1712775032808,-500.0,0.00020832,2]
[322102997,1712775032817,-500.0,0.00020832,2]
[322102998,1712775032828,-166.95,0.00020835,2]
[322102999,1712775032839,-1000.0,0.00020858,2]
[322103000,1712775032848,-1000.0,0.00020899,2]
[322103001,1712775032858,-399.08,0.00020899,2]
[322103002,1712775032868,-171.5796654,0.000209,2]
[322103003,1712775032878,-3000.0,0.000209,2]
[322103004,1712775032887,-172.81913631,0.000209,2]
[322103005,1712775032896,-172.81913631,0.000209,2]
[322103006,1712775032906,-172.81913631,0.000209,2]
[322103007,1712775032916,-512.92688551,0.000209,2]
[322103008,1712775032927,-3000.0,0.0002098,2]
[322103009,1712775032937,-7371.5065377,0.00020997,2]
[322103010,1712775032949,-537.76646111,0.00020997,2]
[322103011,1712775032959,-319.75159024,0.00020997,2]
[322103012,1712775032968,-17928.21169523,0.00020997,2]
[322103013,1712775032978,-784.91646017,0.00020998,2]
[322103014,1712775032987,-155.0,0.00020998,2]
[322103015,1712775032997,-155.0,0.00020998,2]
[322103016,1712775033006,-785.42521986,0.00020998,2]
[322103017,1712775033016,-2348.97634667,0.00020998,2]
[322103018,1712775033025,-155.0,0.00020998,2]
[322103019,1712775033034,-155.0,0.00020998,2]
[322103020,1712775033044,-741.67995466,0.00020998,2]
[322103021,1712775033053,-9000.0,0.00020998,2]
[322103022,1712775033063,-241126.47278669,0.00020998,2]
[322103023,1712775033102,157.84390401,0.00018969,2]
[322103024,1712775033116,-5702.86316281,0.00020998,2]
[322103025,1712775033244,-287.6917997,0.00020998,2]
[322103026,1712775033256,-17524.50238198,0.00020998,2]
[322103027,1712775033269,-479.79915433,0.00020998,2]
[322103038,1712775037878,157.84390401,0.00018977,2]
[322103047,1712775038558,-204.85690233,0.000205,2]
[322103048,1712775038568,-1828.60888692,0.00020578,2]
[322103049,1712775038578,-165.70820128,0.0002079,2]
[322103050,1712775038589,-2523.59055019,0.00020998,2]
[322103051,1712775038601,-4096.61763593,0.00020998,2]
[322103052,1712775038612,-15740.34339806,0.00020998,2]
[322103053,1712775038624,-8445.80363559,0.00020998,2]
[322103054,1712775038636,-388.03975856,0.00020998,2]
[322103055,1712775038648,-122046.7563477,0.00020998,2]
[322103056,1712775038673,-742.0473635,0.00020998,2]
[322103057,1712775038804,-848.26710872,0.00020998,2]
[322103058,1712775038816,-5226.442725,0.00020998,2]
[322103062,1712775039915,-16317.96941354,0.00020998,2]
[322103063,1712775039928,-2300.11719691,0.00020998,2]
[322103064,1712775039943,-313933.55301214,0.00020998,2]
[322103065,1712775039975,-4398.63388976,0.00020998,2]
[322103083,1712775042601,-1252.87340764,0.00020998,2]
[322103084,1712775042614,-85451.04669961,0.00020998,2]
[322103085,1712775042624,-206.59266165,0.00020999,2]
[322103086,1712775042634,-1988.24299211,0.00020999,2]
[322103087,1712775042643,-1002.7971,0.00020999,2]
[322103088,1712775042653,-2082601.76408765,0.00021,2]
[322103089,1712775042677,-6511.11283393,0.00021,2]
[322103090,1712775042717,-654.02,0.00021,2]
[322103091,1712775042831,-22357.49182674,0.00021,2]
[322103108,1712775045794,-618.19999288,0.00020997,2]
[322103109,1712775045809,-871.725,0.00020997,2]
[322103110,1712775045855,-510.11744739,0.00020997,2]
[322103111,1712775045865,-228.46255259,0.00021,2]
[322103112,1712775045940,-2462.68515412,0.00021,2]
[322103113,1712775045973,-6254.70780033,0.00021,2]
[322103114,1712775045985,-1671.66338097,0.00021,2]
[322103116,1712775116859,9324.3599174,0.00018316,2]
[322103119,1712775184835,317.16,0.00018152,2]
[322103128,1712775655528,301.3,0.00017204,2]
[322103129,1712775766235,309.73423132,0.00017204,2]
[322103130,1712775826117,250.0,0.00018981,2]
[322103131,1712775855258,1000.0,0.00018984,2]
[322103132,1712775858797,200.0,0.00018984,2]
[322103133,1712775909785,282.1782915,0.00018913,2]
[322103136,1712775992454,157.85688166,0.00018914,2]
[322103138,1712776105927,324.06,0.00017033,2]
[322103139,1712776118572,568.42,0.00018949,2]
[322103140,1712776118616,151.76338005,0.00018914,2]
[322103141,1712776134898,500.0,0.00018981,2]
[322103159,1712776195954,1000.0,0.00019002,2]
[322103160,1712776221659,930.0792,0.00018909,2]
[322103174,1712776231754,-155.0,0.00019013,2]
[322103175,1712776231769,-284.5,0.00019014,2]
[322103176,1712776231783,-3.195,0.00019019,2]
[322103177,1712776231810,-146.805,0.00019019,2]
[322103178,1712776231827,-2667.28,0.0001902,2]
[322103179,1712776231843,-4789.76573837,0.0001902,2]
[322103180,1712776231883,-383.30028106,0.0001902,2]
[322103181,1712776231901,-3296.36816436,0.0001902,2]
[322103182,1712776231947,-15420.56581621,0.0001902,2]
[322103183,1712776231962,-697.86,0.00019024,2]
[322103184,1712776231976,-238.6,0.0001911,2]
[322103185,1712776231991,-157.6,0.00019163,2]
[322103186,1712776232005,-1000.0,0.00019178,2]
[322103187,1712776232021,-324.06,0.00019297,2]
[322103188,1712776232031,-554.13,0.00019297,2]
[322103189,1712776232041,-76015.85,0.00019297,2]
[322103190,1712776232051,-157.85688166,0.00019507,2]
[322103191,1712776232237,-150.99,0.00019507,2]
[322103192,1712776232265,-150.99,0.00019507,2]
[322103193,1712776232275,-1820.45,0.00019691,2]
[322103194,1712776232286,-27131.09168781,0.0001979,2]
[322103195,1712776232295,-300.0,0.000198,2]
[322103196,1712776232304,-255.5833,0.000198,2]
[322103197,1712776232313,-1472.4402,0.000198,2]
[322103198,1712776232323,-928.00155315,0.000199,3]
[322103199,1712776232332,-499.99,0.000199,2]
[322103200,1712776232341,-150.99,0.000199,2]
[322103201,1712776232350,-15306.48374549,0.000199,2]
[322103202,1712776232359,-298.51979636,0.00019974,2]
[322103203,1712776232369,-155.0,0.0002,2]
[322103204,1712776232378,-15306.48374545,0.00020011,2]
[322103205,1712776232388,-4470.46982874,0.00020044,2]
[322103206,1712776232397,-1952.935,0.00020078,2]
[322103207,1712776232406,-157.85688166,0.000201,2]
[322103208,1712776232415,-15306.48374545,0.00020122,2]
[322103209,1712776232424,-193.59097307,0.00020133,2]
[322103210,1712776232433,-328.67022334,0.00020133,2]
[322103211,1712776232444,-4470.46982874,0.00020167,2]
[322103212,1712776232455,-164.33,0.00020168,2]
[322103213,1712776232465,-1000.0,0.00020176,2]
[322103214,1712776232476,-275.40595316,0.00020177,2]
[322103215,1712776232486,-8412.98518047,0.00020177,2]
[322103216,1712776232495,-1968.4207604,0.00020177,2]
[322103217,1712776232504,-332466.4946,0.00020178,2]
[322103218,1712776232513,-15306.48374545,0.00020233,2]
[322103219,1712776232522,-328.67022331,0.00020286,2]
[322103220,1712776232531,-4470.46982874,0.00020289,2]
[322103221,1712776232540,-425.32507762,0.0002029,2]
[322103222,1712776232549,-164.33,0.0002029,2]
[322103223,1712776232558,-1000.0,0.000203,2]
[322103224,1712776232567,-76557.1492,0.000203,2]
[322103225,1712776232578,-3156.6689,0.000203,2]
[322103226,1712776232587,-13734.87465761,0.000203,2]
[322103227,1712776232596,-169.15456791,0.000203,2]
[322103228,1712776232605,-184.24281592,0.000203,2]
[322103229,1712776232614,-152.97212763,0.00020333,2]
[322103230,1712776232623,-15306.48374545,0.00020344,2]
[322103231,1712776232632,-13734.8746575,0.00020355,2]
[322103232,1712776232641,-152.97212755,0.00020365,2]
[322103233,1712776232650,-425.32507762,0.0002039,2]
[322103234,1712776232660,-164.33,0.0002039,2]
[322103235,1712776232669,-164.33,0.0002039,2]
[322103236,1712776232678,-164.33,0.0002039,2]
[322103237,1712776232687,-164.33,0.0002039,2]
[322103238,1712776232696,-152.97212755,0.00020396,2]
[322103239,1712776232705,-155.0,0.00020398,2]
[322103240,1712776232714,-375.77516328,0.00020399,2]
[322103241,1712776232723,-155.0,0.00020399,2]
[322103242,1712776232733,-500.0,0.00020399,2]
[322103243,1712776232742,-531.35377516,0.00020399,2]
[322103244,1712776232750,-500.0,0.00020399,2]
[322103245,1712776232760,-415.02159419,0.00020399,2]
[322103246,1712776232769,-540.0,0.000204,2]
[322103247,1712776232778,-608044.20280213,0.000204,3]
[322103248,1712776232809,-33112.85028532,0.000204,3]
[322103249,1712776232873,-1708.31840845,0.000204,3]
[322103250,1712776232885,-685781.04293336,0.000204,3]
[322103251,1712776232894,-13734.8746575,0.00020409,2]
[322103252,1712776232904,-4470.46982874,0.00020411,2]
[322103253,1712776232913,-152.97212755,0.00020428,2]
[322103254,1712776232923,-328.67022331,0.0002044,2]
[322103255,1712776232932,-15306.48374545,0.00020456,2]
[322103256,1712776232942,-152.97212755,0.00020459,2]
[322103257,1712776232951,-13734.8746575,0.00020464,2]
[322103258,1712776232960,-425.32507762,0.0002049,2]
[322103259,1712776232969,-152.97212755,0.00020491,2]
[322103260,1712776232979,-500.0,0.00020499,2]
[322103261,1712776232988,-353.57578686,0.00020499,2]
[322103262,1712776232997,-592.12084595,0.00020499,2]
[322103263,1712776233006,-4601.17241875,0.000205,2]
[322103264,1712776233016,-47358.07116297,0.000205,2]
[322103265,1712776233028,-270.38829693,0.000205,2]
[322103266,1712776233045,-867.67329241,0.000205,2]
[322103268,1712776237733,-596.04655466,0.00019822,2]
[322103269,1712776237825,-153.91004534,0.00019822,2]
[322103270,1712776237836,-201.70547696,0.000204,2]
[322103272,1712776237846,-29.84914152,0.000205,2]
[322103273,1712776237901,-888.95229078,0.000205,2]
[322103285,1712776238707,-412.5504,0.000205,2]
[322103286,1712776238719,-252.744,0.000205,2]
[322103287,1712776238736,-1624596.58221736,0.000205,2]
[322103288,1712776238745,-184.24281591,0.000205,2]
[322103289,1712776238754,-193.59097307,0.00020517,2]
[322103290,1712776238762,-13734.8746575,0.00020518,2]
[322103291,1712776238771,-549.0,0.0002052,2]
[322103292,1712776238781,-518.0,0.0002052,2]
[322103294,1712776238790,-152.97212755,0.00020522,2]
[322103296,1712776238799,-4470.46982874,0.00020533,2]
[322103298,1712776238809,-211.61,0.00020548,2]
[322103300,1712776238819,-152.97212755,0.00020554,2]
[322103302,1712776238829,-15306.48374545,0.00020567,2]
[322103304,1712776238838,-13734.8746575,0.00020573,2]
[322103306,1712776238848,-152.97212755,0.00020585,2]
[322103308,1712776238857,-328.67022331,0.00020593,2]
[322103310,1712776238869,-1000.0,0.000206,2]
[322103312,1712776238882,-286.09414685,0.000206,2]
[322103313,1712776238893,-286.09414685,0.000206,2]
[322103314,1712776238901,-286.09414685,0.000206,2]
[322103315,1712776238910,-152.97212755,0.00020617,2]
[322103316,1712776238919,-13734.8746575,0.00020627,2]
[322103317,1712776238929,-152.97212755,0.00020648,2]
[322103318,1712776238938,-4470.46982874,0.00020656,2]
[322103319,1712776238948,-15306.48374545,0.00020678,2]
[322103320,1712776238957,-152.97212755,0.0002068,2]
[322103321,1712776238966,-13734.8746575,0.00020682,2]
[322103322,1712776238975,-1242.0,0.000207,2]
[322103323,1712776238984,-184.24281591,0.000207,2]
[322103324,1712776238994,-1378.32290634,0.000207,2]
[322103325,1712776239004,-1378.32290634,0.000207,2]
[322103326,1712776239014,-1378.32290634,0.000207,2]
[322103327,1712776239023,-1378.32290634,0.000207,2]
[322103328,1712776239032,-1378.32290634,0.000207,2]
[322103329,1712776239042,-1378.32290634,0.000207,2]
[322103330,1712776239052,-1378.32290634,0.000207,2]
[322103331,1712776239061,-1378.32290634,0.000207,2]
[322103332,1712776239071,-1378.32290634,0.000207,2]
[322103333,1712776239080,-1378.32290634,0.000207,2]
[322103334,1712776239089,-1378.32290634,0.000207,2]
[322103335,1712776239098,-1378.32290634,0.000207,2]
[322103336,1712776239107,-1378.32290634,0.000207,2]
[322103337,1712776239117,-1378.32290634,0.000207,2]
[322103338,1712776239126,-1378.32290634,0.000207,2]
[322103339,1712776239137,-1378.32290634,0.000207,2]
[322103340,1712776239146,-1378.32290634,0.000207,2]
[322103341,1712776239157,-1378.32290634,0.000207,2]
[322103342,1712776239168,-1378.32290634,0.000207,2]
[322103343,1712776239185,-1378.32290634,0.000207,2]
[322103344,1712776239203,-1378.32290634,0.000207,2]
[322103345,1712776239212,-1378.32290634,0.000207,2]
[322103346,1712776239221,-1378.32290634,0.000207,2]
[322103347,1712776239230,-1378.32290634,0.000207,2]
[322103348,1712776239239,-1378.32290634,0.000207,2]
[322103349,1712776239248,-1378.32290634,0.000207,2]
[322103350,1712776239259,-1378.32290634,0.000207,2]
[322103351,1712776239269,-1378.32290634,0.000207,2]
[322103352,1712776239278,-1378.32290634,0.000207,2]
[322103353,1712776239288,-1378.32290634,0.000207,2]
[322103354,1712776239297,-1378.32290634,0.000207,2]
[322103355,1712776239306,-1378.32290634,0.000207,2]
[322103356,1712776239316,-1378.32290634,0.000207,2]
[322103357,1712776239325,-1378.32290634,0.000207,2]
[322103358,1712776239335,-1378.32290634,0.000207,2]
[322103359,1712776239344,-1378.32290634,0.000207,2]
[322103360,1712776239353,-1378.32290634,0.000207,2]
[322103361,1712776239363,-1378.32290634,0.000207,2]
[322103362,1712776239372,-1378.32290634,0.000207,2]
[322103363,1712776239383,-1378.32290634,0.000207,2]
[322103364,1712776239393,-1378.32290634,0.000207,2]
[322103365,1712776239403,-1378.32290634,0.000207,2]
[322103366,1712776239412,-1378.32290634,0.000207,2]
[322103367,1712776239422,-1378.32290634,0.000207,2]
[322103368,1712776239434,-1378.32290634,0.000207,2]
[322103369,1712776239455,-1378.32290634,0.000207,2]
[322103370,1712776239465,-1378.32290634,0.000207,2]
[322103371,1712776239476,-1378.32290634,0.000207,2]
[322103372,1712776239487,-1378.32290634,0.000207,2]
[322103373,1712776239498,-1378.32290634,0.000207,2]
[322103374,1712776239508,-152.97212755,0.00020711,2]
[322103375,1712776239518,-13734.8746575,0.00020736,2]
[322103376,1712776239528,-152.97212755,0.00020743,2]
[322103377,1712776239539,-328.67022331,0.00020747,2]
[322103378,1712776239549,-152.97212755,0.00020774,2]
[322103379,1712776239559,-4470.46982874,0.00020778,2]
[322103380,1712776239570,-15306.48374545,0.00020789,2]
[322103381,1712776239580,-165.70820128,0.0002079,2]
[322103382,1712776239590,-13734.8746575,0.00020791,2]
[322103383,1712776239599,-150.0,0.00020792,2]
[322103384,1712776239609,-1506695.1244408,0.000208,2]
[322103385,1712776239618,-730.67,0.000208,2]
[322103386,1712776239628,-481.4,0.000208,2]
[322103388,1712776239638,-150.0,0.00020803,2]
[322103389,1712776239647,-152.97212755,0.00020806,2]
[322103390,1712776239657,-200.0,0.00020831,2]
[322103391,1712776239667,-500.0,0.00020831,2]
[322103392,1712776239677,-200.0,0.00020832,2]
[322103393,1712776239687,-1000.0,0.00020832,2]
[322103394,1712776239698,-200.0,0.00020832,2]
[322103395,1712776239707,-500.0,0.00020832,2]
[322103396,1712776239717,-152.97212755,0.00020837,2]
[322103397,1712776239726,-13734.8746575,0.00020845,2]
[322103398,1712776239736,-152.97212755,0.00020869,2]
[322103399,1712776239745,-362.0345,0.00020895,2]
[322103400,1712776239755,-2856.50833,0.000209,2]
[322103401,1712776239764,-1367.1326,0.000209,2]
[322103402,1712776239774,-83125.9421,0.000209,2]
[322103403,1712776239784,-152.97212755,0.000209,2]
[322103404,1712776239793,-15306.48374545,0.000209,2]
[322103405,1712776239803,-184.24281591,0.000209,2]
[322103406,1712776239813,-13734.8746575,0.000209,2]
[322103407,1712776239840,-4470.46982874,0.000209,2]
[322103408,1712776239851,-193.59097307,0.000209,2]
[322103409,1712776239861,-1151.71395591,0.000209,2]
[322103410,1712776239871,-328.67022331,0.000209,2]
[322103411,1712776239880,-172.81913631,0.000209,2]
[322103412,1712776239891,-200.52,0.00020982,2]
[322103413,1712776239900,-4662.1399297,0.0002099,2]
[322103414,1712776239910,-71589.7584599,0.0002099,2]
[322103415,1712776239919,-785.42521986,0.00020998,2]
[322103416,1712776239929,-206.70628345,0.00020999,2]
[322103417,1712776239939,-3908.77126271,0.00020999,2]
[322103418,1712776239948,-5680.20530654,0.00020999,2]
[322103419,1712776239958,-5768845.34058756,0.00021,2]
[322103420,1712776239968,-397.92945511,0.00021,2]
[322103421,1712776239978,-1400810.91650616,0.00021,2]
[322103422,1712776239987,-326.67757,0.00021,2]
[322103423,1712776239997,-714.96210186,0.00021,2]
[322103424,1712776240007,-394.0,0.00021,2]
[322103425,1712776240017,-250.0,0.00021,3]
[322103426,1712776240026,-6298785.93834573,0.00021,2]
[322103427,1712776240563,-122046.7563477,0.00021,2]
[322103428,1712776240575,-1542.87252878,0.00021,2]
[322103429,1712776240588,-380.04,0.00021,2]
[322103430,1712776240791,-194.867348,0.00020548,2]
[322103431,1712776240800,-136990.53265058,0.00021,2]
[322103432,1712776240812,-23513.69205848,0.00021,2]
[322103433,1712776240825,-3709.30380005,0.00021,2]
[322103434,1712776240854,-500.0,0.00021,2]
[322103435,1712776240869,-1006.632,0.00021,2]
[322103436,1712776240882,-263635.44868058,0.00021,2]
[322103437,1712776240894,-332.30148056,0.00021,2]
[322103438,1712776240906,-3183.80000012,0.00021,2]
[322103439,1712776240953,-279.5294293,0.00021,2]